Organisation Name,Organisation Code,Organisational Unit,Service Category Label,Procurement Category,Supplier Name,Supplier Other ID,Payment Date,Transaction Number,Amount (�),Purpose
Eden District Council,http://opendatacommunities.org/id/district-council/eden,Information Technology Manager,Information Technology,Computer equipment,PROBRAND LIMITED,PRO008,10/05/19,172082,510.05,V330 15-8250u 8gb
Eden District Council,http://opendatacommunities.org/id/district-council/eden,Information Technology Manager,Information Technology,Computer equipment,PROBRAND LIMITED,PRO008,10/05/19,172199,508,V330-15IKB 15.06
Eden District Council,http://opendatacommunities.org/id/district-council/eden,Technical Services Manager,Vehicle Parking Off Street,Signs,CUMBRIA COUNTY COUNCIL,COU004,10/05/19,171264,939,CAR PARK SIGNAGE
Eden District Council,http://opendatacommunities.org/id/district-council/eden,Technical Services Manager,Vehicle Parking Off Street,Maintenance of parking meters,CALE ACCESS UK LTD,CAL008,10/05/19,171408,1030,TARIFF CHARGES
Eden District Council,http://opendatacommunities.org/id/district-council/eden,Technical Services Manager,Community Development & Engagement,Grants and contributions,THE POLICE & CRIME COMMISSIONER FOR CUMBRIA,THE006,10/05/19,171870,20000,SARC FUNDING 19/20
Eden District Council,http://opendatacommunities.org/id/district-council/eden,Human Resources Manager,Staff Development,In house training,BIPOLAR UK,BIP003,10/05/19,172081,566.59,EMPLOYMENT TRAINING/EXPENSES
Eden District Council,http://opendatacommunities.org/id/district-council/eden,Commercial Services Manager,Penrith TIC Trading Account,Publications,HILLS BOOKS LTD,HIL005,10/05/19,172085,552.47,ASSORTED BOOKS/MAPS
Eden District Council,http://opendatacommunities.org/id/district-council/eden,Commercial Services Manager,Community Development & Engagement,Grants and contributions,WEST DEVON BOROUGH COUNCIL,WES030,10/05/19,172095,2308,RSN ANNUAL SUBSCRIPTION
Eden District Council,http://opendatacommunities.org/id/district-council/eden,Corporate Services Manager,Central Expenses,Supplies general,HEATONS OFFICE SOLUTIONS LTD,LAK004,10/05/19,172198,1178.35,STATIONERY AND PAPER
Eden District Council,http://opendatacommunities.org/id/district-council/eden,Technical Services Manager,Vehicle Parking Off Street,Winter Gritting,CUMBRIA COUNTY COUNCIL,CCC002,10/05/19,171244,18630.56,WINTER APPLICATIONS
Eden District Council,http://opendatacommunities.org/id/district-council/eden,Commercial Services Manager,Community Development & Engagement,Community Fund,KIRKOSWALD PARISH COUNCIL,KIR006,10/05/19,171466,6174.75,75% TOWARDS FUNDING
Eden District Council,http://opendatacommunities.org/id/district-council/eden,Environmental Services,Water Sampling,Professional fees,RENTOKIL INITIAL PEST CONTROL,REN009,10/05/19,171585,910.03,PESTS MISCELLANEOUS
Eden District Council,http://opendatacommunities.org/id/district-council/eden,Commercial Services Manager,Markets,Promotional activity,CODAIR DESIGN & PUBLICITY LIMITED,COD001,10/05/19,171765,500,ADVERT ON INFO MAPS ON SITED BOARDS
Eden District Council,http://opendatacommunities.org/id/district-council/eden,Financial Services Manager,Arts and Leisure,Balance Sheet entry BS,GREENWICH LEISURE LTD,NCL001,10/05/19,171841,8687.85,MANAGEMENT CONTRACT
Eden District Council,http://opendatacommunities.org/id/district-council/eden,Environmental Services,Homelessness,Professional fees,EDEN HOUSING ASSOCIATION LTD,EDE001,10/05/19,171848,8000,EXT DAP POST TO 31.03.20
Eden District Council,http://opendatacommunities.org/id/district-council/eden,Technical Services Manager,Arts and Leisure,Grants and contributions,EDEN VALLEY ARTISTIC NEWTORK CIC,EDE083,10/05/19,171849,5000,ARTS EVENTS GRANT
Eden District Council,http://opendatacommunities.org/id/district-council/eden,Technical Services Manager,Vehicle Parking Off Street,Contract parking Service,CUMBRIA COUNTY COUNCIL,CCC002,10/05/19,171852,2908.82,12 WEEK PATROLS 01.01.19-31.03.19
Eden District Council,http://opendatacommunities.org/id/district-council/eden,Information Technology Manager,Information Technology,IT Contracts & Maintenance,MLL TELECOM LTD,MLL001,10/05/19,171869,3705.75,SERVICE INVOICE APRIL 19
Eden District Council,http://opendatacommunities.org/id/district-council/eden,Human Resources Manager,Human Resources,Professional fees,BURNETTS SOLICITORS,BUR015,10/05/19,171887,540,EMPLOYMENT ADVICE
Eden District Council,http://opendatacommunities.org/id/district-council/eden,Legal Services Manager,Elections,Miscellaneous,ROYAL MAIL NW,ROY001,10/05/19,171900,2552.57,BUSINESS MAIL ADVANCED
Eden District Council,http://opendatacommunities.org/id/district-council/eden,Commercial Services Manager,Tourism Promotion,Marketing,CODAIR DESIGN & PUBLICITY LIMITED,COD001,10/05/19,171904,675.5,MAP PURCHASE X 3000
Eden District Council,http://opendatacommunities.org/id/district-council/eden,Technical Services Manager,Administrative Buildings,Gas,CORONA ENERGY,COR003,10/05/19,171958,549.36,MANSION HOUSE
Eden District Council,http://opendatacommunities.org/id/district-council/eden,Technical Services Manager,Administrative Buildings,Gas,CORONA ENERGY,COR003,10/05/19,171959,734.59,TOWN HALL
Eden District Council,http://opendatacommunities.org/id/district-council/eden,Human Resources Manager,Central Expenses,Relocation expenses,REDACTED INFORMATION,ANT008,10/05/19,171963,5009.1,RELOCATION ALLOWANCE
Eden District Council,http://opendatacommunities.org/id/district-council/eden,Environmental Services,1996 Mandatory Renovation Grants,Capital grants,PPM LTD,PPM001,10/05/19,172067,6079.06,FIN PAYMENT
Eden District Council,http://opendatacommunities.org/id/district-council/eden,Information Technology Manager,Information Technology,Government Connect,VODAFONE LTD,VOD003,10/05/19,172080,2958.59,DATA SERVICES APRIL 19
Eden District Council,http://opendatacommunities.org/id/district-council/eden,Communities Director,Economic Development and Promotion,Promotions,UPPER EDEN COMMUNITY INTEREST COMPANY,UPP006,10/05/19,172087,5625,SERVICE LEVEL AGREEMENT JUNE 18/19
Eden District Council,http://opendatacommunities.org/id/district-council/eden,Legal Services Manager,Elections,Miscellaneous,ROYAL MAIL NW,ROY001,10/05/19,172098,1371.98,RESPONSE PLUS
Eden District Council,http://opendatacommunities.org/id/district-council/eden,Environmental Services,Homelessness,Accommodation,EDEN HOUSING ASSOCIATION LTD,EDE001,10/05/19,172195,1091.14,REDECORATION AFTER SOUND PROOFING
Eden District Council,http://opendatacommunities.org/id/district-council/eden,Technical Services Manager,Arts and Leisure,Grants and contributions,GREYSTOKE & DISTRICT SPORTS ASSOCIATION,GRE020,10/05/19,172206,500,RURAL POOL GRANT 1ST PAYMENT
Eden District Council,http://opendatacommunities.org/id/district-council/eden,Technical Services Manager,Arts and Leisure,Grants and contributions,LAZONBY SWIMMING POOL ASSOCIATION,LAZ003,10/05/19,172207,500,RURAL POOL GRANT 1ST PAYMENT
Eden District Council,http://opendatacommunities.org/id/district-council/eden,Technical Services Manager,Arts and Leisure,Grants and contributions,SHAP SWIMMING POOL,SHA011,10/05/19,172208,500,RURAL POOL GRANT 1ST PAYMENT
Eden District Council,http://opendatacommunities.org/id/district-council/eden,Information Technology Manager,Repairs & Renewals Fund,Equipment � purchase,PROBRAND LIMITED,PRO008,17/05/19,172237,18796,V330-15IKB 8GB
Eden District Council,http://opendatacommunities.org/id/district-council/eden,Environmental Services,Community Wardens,Training Costs,KEEP BRITAIN TIDY,KEE005,17/05/19,172232,1050,LITTER FROM VEHICLE ENFORCEMENT TRAINING
Eden District Council,http://opendatacommunities.org/id/district-council/eden,Technical Services Manager,Eden Leisure Centre & Appleby Swimming P,Abnormal maintenance,EEC (2012) LTD,EEC001,17/05/19,171274,1930,REPLACE COLUMN AND LANTERN
Eden District Council,http://opendatacommunities.org/id/district-council/eden,Technical Services Manager,Eden Leisure Centre & Appleby Swimming P, Adhoc Works,GORDON GRAHAM ROADMARKINGS LTD,GOR002,17/05/19,171283,839.35,LINES FRENCHFIELD
Eden District Council,http://opendatacommunities.org/id/district-council/eden,Technical Services Manager,Parks and Open Spaces,GM External Contractors,MARMAX PRODUCTS LTD,MAR026,17/05/19,171875,2288.6,BROWN DECO/DEC BACK WIT
Eden District Council,http://opendatacommunities.org/id/district-council/eden,Planning Policy Manager,Local Plans & Policy,Professional fees,MR A D LLOYD SOLE TRADER ,LLO011,17/05/19,172092,1188.6,EVENT AT RHEGED
Eden District Council,http://opendatacommunities.org/id/district-council/eden,Commercial Services Manager,Alston TIC Trading A/C,Publications,NORTHERN HERITAGE SERVICES LTD,NOR029,17/05/19,172221,550.89,TOURIST INFO BOOKS
Eden District Council,http://opendatacommunities.org/id/district-council/eden,Planning Policy Manager,Local Plans & Policy,Professional fees,NATIONAL CUSTOM AND SELF-BUILD ASSOCIATION,NAT036,17/05/19,172212,-2400,ADVICE/SUPP RE SELF /CUSTOM BUILD
Eden District Council,http://opendatacommunities.org/id/district-council/eden,Planning Policy Manager,Local Plans & Policy,Professional fees,NATIONAL CUSTOM AND SELF-BUILD ASSOCIATION,NAT036,17/05/19,172213,1800,ADVICE/SUPP SELF/CUSTOM BUILD
Eden District Council,http://opendatacommunities.org/id/district-council/eden,Technical Services Manager,Recycling,Bank-Refurbishment,AMEY PLC,TFE001,17/05/19,172214,5174.54,STREET CLEANING
Eden District Council,http://opendatacommunities.org/id/district-council/eden,Legal Services Manager,Elections,Miscellaneous,PRINT IMAGE FACILITIES LLP,PRI014,17/05/19,172219,730,GRASS SKIRTS
Eden District Council,http://opendatacommunities.org/id/district-council/eden,Legal Services Manager,Elections,Miscellaneous,DYNAMIC JOINERY LTD,DYN004,17/05/19,172230,4475,COLLECTION BALLOT BOXES TO VARIOUS SITES
Eden District Council,http://opendatacommunities.org/id/district-council/eden,Technical Services Manager,Cemeteries,ADHOC WORKS FOR BURIALS,AMEY PLC,TFE001,17/05/19,172235,2246.27,GM155
Eden District Council,http://opendatacommunities.org/id/district-council/eden,Technical Services Manager,Cemeteries,ADHOC WORKS FOR BURIALS,AMEY PLC,TFE001,17/05/19,172238,3332.32,GROUNDS MAIN
Eden District Council,http://opendatacommunities.org/id/district-council/eden,Commercial Services Manager,Tourist Information Centres,Grants and contributions,APPLEBY TOWN COUNCIL,APP001,17/05/19,172240,4500,SUPPORT GRANT APPLEBY TIC
Eden District Council,http://opendatacommunities.org/id/district-council/eden,Information Technology Manager,Information Technology,Printers Contract,XEROX FINANCE,XER003,17/05/19,172246,975,kip860 rent 24.05.19-23.08.19
Eden District Council,http://opendatacommunities.org/id/district-council/eden,Planning Services,Planning Services,Subscriptions & levies,HAYMARKET MEDIA GROUP LTD,HAY019,17/05/19,172252,2375,DCP ONLINE RENEWALS EXP 30.04.20
Eden District Council,http://opendatacommunities.org/id/district-council/eden,Legal Services Manager,Land Management,Professional fees,WALTON GOODLAND LTD,WAL008,17/05/19,170658,1100,VALUATION ADVICE POLICE STATION HUNTER L
Eden District Council,http://opendatacommunities.org/id/district-council/eden,Revenue/Benefits Manager,Collection of Local Taxation,Software � maintenance,SOUTH LAKELAND DISTRICT COUNCIL,SOU006,17/05/19,171116,1300,RECHARGE SOFTWARE COST BUSINESS RATES
Eden District Council,http://opendatacommunities.org/id/district-council/eden,Legal Services Manager,Land Management,Building Maintenance,CBEN PARTNERSHIP LLP,CBE001,17/05/19,171125,1718.95,FINAL PAYMENT CARBON MANAGEMENT PLAN
Eden District Council,http://opendatacommunities.org/id/district-council/eden,Legal Services Manager,Land Management,Professional fees,WALTON GOODLAND LTD,WAL008,17/05/19,171270,1200,PENRITH POLICE STATION
Eden District Council,http://opendatacommunities.org/id/district-council/eden,Legal Services Manager,Legal Services,Development,ACT NOW TRAINING,ACT006,17/05/19,171452,1795,FOI PRACTIONER COURSE
Eden District Council,http://opendatacommunities.org/id/district-council/eden,Revenue/Benefits Manager,Benefits,Software � maintenance,SOUTH LAKELAND DISTRICT COUNCIL,SOU006,17/05/19,171964,21142,recharge rev product 01.04.19 -31.03.20
Eden District Council,http://opendatacommunities.org/id/district-council/eden,Planning Policy Manager,Local Plans & Policy,Professional fees,NATIONAL CUSTOM AND SELF-BUILD ASSOCIATION,NAT036,17/05/19,172068,2400,WORKSHOPS/REFRESHERS
Eden District Council,http://opendatacommunities.org/id/district-council/eden,Chief Executive's,Chief Executive,Professional fees,HUNTER JOHNSTONE MARKETING SOLUTIONS,HUN004,17/05/19,172101,1564,COUNCIL EVENT BANNERS
Eden District Council,http://opendatacommunities.org/id/district-council/eden,Planning Services,Environmental Enhancement & Conservation,Professional fees,CAPITA PROPERTY & INFRASTRUCTURE LTD,CAP002,17/05/19,172188,2466.79,ARBORICULTURAL APRIL 2019
Eden District Council,http://opendatacommunities.org/id/district-council/eden,Commercial Services Manager,Tourism Promotion,Distribution,LIFESTYLE MEDIA GROUP LTD,CAT003,17/05/19,172200,590.01,BROCHURES 1-30.04.19
Eden District Council,http://opendatacommunities.org/id/district-council/eden,Legal Services Manager,Member Development & Training,Training,INSTITUTE OF LICENSING (EVENTS) LTD,INS020,24/05/19,172335,1320,TRAINING COURSE
Eden District Council,http://opendatacommunities.org/id/district-council/eden,Legal Services Manager,Land Management,Building Maintenance,ENVIRONMENT AGENCY,ENV004,15/05/19,172354,718,EDEN BUSINESS PARK TRADE SITE DRAINAGE - ANNUAL CHARGE
Eden District Council,http://opendatacommunities.org/id/district-council/eden,Legal Services Manager,Land Management,Building Maintenance,AMEY PLC,TFE001,24/05/19,171282,2742.86,HIRE LIGHT TOWER
Eden District Council,http://opendatacommunities.org/id/district-council/eden,Technical Services Manager,Arts and Leisure,Other charges for services,AMEY PLC,TFE001,24/05/19,172190,2222.52,WORKS AT KING GEORGE PLAYING FIELD APPLE
Eden District Council,http://opendatacommunities.org/id/district-council/eden,Technical Services Manager,Arts and Leisure,Other charges for services,GREENWICH LEISURE LTD,NCL001,24/05/19,172234,1845.14,RECHARGE CASUAL STAFFING
Eden District Council,http://opendatacommunities.org/id/district-council/eden,Technical Services Manager,Footway Lighting,FL External Contractors,ELECTRICITY NORTH WEST LTD,ELE005,24/05/19,172243,624,LAMP DISC 10 HIGHFIELD TEBAY
Eden District Council,http://opendatacommunities.org/id/district-council/eden,Technical Services Manager,Public Conveniences,Building Maintenance,AMEY PLC,TFE001,24/05/19,172255,510.02,REPAIR HAND DRIERS APPLEBY PCS
Eden District Council,http://opendatacommunities.org/id/district-council/eden,Planning Policy Manager,Local Plans & Policy,Child Care Voucher Scheme,BUSY BEES CHILDCARE VOUCHERS,BUS004,17/05/19,172398,1190,CHILDCARE VOUCHERS 17/05/19 DDR
Eden District Council,http://opendatacommunities.org/id/district-council/eden,Technical Services Manager,Vehicle Parking Off Street,Advertising,CUMBERLAND AND WESTMORLAND HERALD,CUM001,24/05/19,170645,675,FINAL NOTICE OF VARIATION
Eden District Council,http://opendatacommunities.org/id/district-council/eden,Environmental Services,Homelessness,Agency Agreement,EDEN HOUSING ASSOCIATION LTD,EDE001,24/05/19,171417,59696.36,ASSORTED COSTS
Eden District Council,http://opendatacommunities.org/id/district-council/eden,Technical Services Manager,Land Charges,Professional fees,CUMBRIA COUNTY COUNCIL,CCC002,24/05/19,171902,528,COMMON SEARCHES MAR 2019
Eden District Council,http://opendatacommunities.org/id/district-council/eden,Commercial Services Manager,Town Centres,Promotional activity,PENRITH CHAMBER OF TRADE,PEN044,24/05/19,172233,10000,GRANT ORGANISATION OF PENRITH EVENTS
Eden District Council,http://opendatacommunities.org/id/district-council/eden,Technical Services Manager,Land Charges,Professional fees,CUMBRIA COUNTY COUNCIL,CCC002,24/05/19,172261,1362,EDEN SEARCHES MAR19
Eden District Council,http://opendatacommunities.org/id/district-council/eden,Technical Services Manager,Land Charges,Professional fees,CUMBRIA COUNTY COUNCIL,CCC002,24/05/19,172262,-528,COMMON SEARCHES MAR 19
Eden District Council,http://opendatacommunities.org/id/district-council/eden,Technical Services Manager,Vehicle Parking Off Street,Subscriptions & levies,BRITISH PARKING ASSOCIATION,BRI019,24/05/19,172323,661,BPA MEMBERSHIP 19/20
Eden District Council,http://opendatacommunities.org/id/district-council/eden,Human Resources Manager,Central Expenses,Advertising,LAW SOCIETY,LAW001,24/05/19,172331,2500,RECTUITMENT AD
Eden District Council,http://opendatacommunities.org/id/district-council/eden,Commercial Services Manager,Tourism Promotion,Grants and contributions,ULLSWATER ASSOCIATION,ULL006,24/05/19,172334,500,TOURISM GRANT ULLSWATER LEAFLET
Eden District Council,http://opendatacommunities.org/id/district-council/eden,Commercial Services Manager,Economic Development and Promotion,Professional fees,ATLANTIC GEOMATICS (UK) LTD,ATL001,24/05/19,172338,1250,OLD LONDON ROAD
Eden District Council,http://opendatacommunities.org/id/district-council/eden,Corporate Services Manager,Central Expenses,Postages,NEOPOST,NEO004,13/05/19,172415,995,Top-Up
Eden District Council,http://opendatacommunities.org/id/district-council/eden,Corporate Services Manager,Central Expenses,Postages,NEOPOST,NEO004,13/05/19,172416,995,Top-Up
Eden District Council,http://opendatacommunities.org/id/district-council/eden,Technical Services Manager,Public Conveniences,Planned Maintenance,AMEY PLC,TFE001,31/05/19,172513,1191.36,QUOTED WORKS PCS PENRITH
Eden District Council,http://opendatacommunities.org/id/district-council/eden,Technical Services Manager,Parks and Open Spaces,Ground Maintenance SOR & Dayworks,NORTH WEST ARBORICULTURAL SERVICES LTD,NOR066,31/05/19,172540,695,DEAD WOOD TREES CASTLE PARK
Eden District Council,http://opendatacommunities.org/id/district-council/eden,Technical Services Manager,Parks and Open Spaces,GM External Contractors,NORTH WEST ARBORICULTURAL SERVICES LTD,NOR066,31/05/19,172462,695,DEAD WOOD TREES CASTLE PARK
Eden District Council,http://opendatacommunities.org/id/district-council/eden,Technical Services Manager,Administrative Buildings,Rental/Maintenance of Door Entry System,ADT FIRE AND SECURITY,ADT001,31/05/19,169582,1937.83,MAINT ACCESS SYSTEM 2019
Eden District Council,http://opendatacommunities.org/id/district-council/eden,Revenue/Benefits Manager,Revenue & Benefits,Printing and stationary,CFH DOCMAIL LTD,CFH001,31/05/19,171402,928,IT DEVELOPMENT CHARGE
Eden District Council,http://opendatacommunities.org/id/district-council/eden,Revenue/Benefits Manager,Revenue & Benefits,Printing and stationary,CFH DOCMAIL LTD,CFH001,31/05/19,172456,-696,CREDIT IT DEVELOPMENT CHARGES
Eden District Council,http://opendatacommunities.org/id/district-council/eden,Technical Services Manager,Arts and Leisure,Grants and contributions,ASKHAM SWIMMING POOL,ASK009,31/05/19,172457,500,RURAL POOLS GRANT
Eden District Council,http://opendatacommunities.org/id/district-council/eden,Technical Services Manager,Land Charges,Professional fees,CUMBRIA COUNTY COUNCIL,CCC002,31/05/19,172487,506,COMMON SEARCHES MAR2019
Eden District Council,http://opendatacommunities.org/id/district-council/eden,Commercial Services Manager,Economic Development and Promotion,Business Engagement,CARLISLE SKILLS,CAR079,31/05/19,172522,500,4 TICKETS
Eden District Council,http://opendatacommunities.org/id/district-council/eden,Information Technology Manager,Repairs & Renewals Fund,Equipment � purchase,IT PROFESSIONAL SERVICES LTD,ITP001,31/05/19,172209,9000,"FIXED FEE - FIBRE PATCH LEAD,LENOVO INTE"
Eden District Council,http://opendatacommunities.org/id/district-council/eden,Environmental Services,1996 Mandatory Renovation Grants,At home in Eden,IMPACT HOUSING ASSOCIATION,IMP001,31/05/19,172224,825.75,AT HOME IN EDEN SERVICE MAY 2019
Eden District Council,http://opendatacommunities.org/id/district-council/eden,Financial Services Manager,Insurance,Professional fees,JARDINE LLOYD THOMPSON UK LTD,JAR003,31/05/19,172454,2000,EDC FEE DUE
Eden District Council,http://opendatacommunities.org/id/district-council/eden,Commercial Services Manager,Economic Development and Promotion,Grants and contributions,LIONS CLUB OF PENRITH,LIO003,31/05/19,172507,1000,LIONS CLUB MAY DAY CARNIVAL
Eden District Council,http://opendatacommunities.org/id/district-council/eden,Technical Services Manager,Recycling,Garden Waste Skips,CUMBRIA WASTE RECYCLING LTD,CUM022,31/05/19,172519,3269,SKIPS
Eden District Council,http://opendatacommunities.org/id/district-council/eden,Technical Services Manager,Recycling,Recycling - Bag & Box,CUMBRIA WASTE RECYCLING LTD,CUM022,31/05/19,172520,21759.98,GREEN BOX CONTRACT
Eden District Council,http://opendatacommunities.org/id/district-council/eden,Technical Services Manager,Recycling,Recycling - Garden Waste,CUMBRIA WASTE RECYCLING LTD,CUM022,31/05/19,172521,24182.37,GARDEN WASTE
Eden District Council,http://opendatacommunities.org/id/district-council/eden,Technical Services Manager,Recycling,Recycling  - Bring Sites,CUMBRIA WASTE RECYCLING LTD,CUM022,31/05/19,172523,7259.67,BRING SITE CONTRACT
Eden District Council,http://opendatacommunities.org/id/district-council/eden,Environmental Services,Housing Delivery,Community Housing Fund - Alston,CUMBRIA MAILING SERVICES LTD,CUM011,31/05/19,172529,531.56,ALSTON MOOR HOUSING QUESTIONAIRE
Eden District Council,http://opendatacommunities.org/id/district-council/eden,Technical Services Manager,Recycling,material price fluctuations,CUMBRIA WASTE RECYCLING LTD,CUM022,31/05/19,172533,4514.31,KERBSIDE BAG AND BOX
Eden District Council,http://opendatacommunities.org/id/district-council/eden,Technical Services Manager,Administrative Buildings,Mechanical & electrical maintenance,TESGL LTD,NOB001,31/05/19,172247,583,BMA MAINTENANCE TH AND MH
Eden District Council,http://opendatacommunities.org/id/district-council/eden,Revenue/Benefits Manager,Parish Precept,Unique payments ****,OUSBY PARISH COUNCIL,OUS009,31/05/19,172490,6036,PARISH PRECEPT/GRANT 19/20
Eden District Council,http://opendatacommunities.org/id/district-council/eden,Legal Services Manager,Land Management,Land Management Contract,WALTON GOODLAND LTD,WAL008,31/05/19,172222,2317,RATE FOR SURVEYOR
Eden District Council,http://opendatacommunities.org/id/district-council/eden,Technical Services Manager,Administrative Buildings,Rental/Maintenance of Fire Alarm,WESTMORLAND FIRE & SECURITY,WES001,31/05/19,172253,688.41,AMINTENANCE FIRE ALARM 01.06.19-31.5.20
Eden District Council,http://opendatacommunities.org/id/district-council/eden,Financial Services Manager,Holding Accounts,Balance Sheet entry BS,SHAW & SONS LTD,SHA002,31/05/19,172317,1572.8,EURO ELECTIONS BOXES/SEALS
Eden District Council,http://opendatacommunities.org/id/district-council/eden,Revenue/Benefits Manager,Benefits,Software � purchase,SOUTH LAKELAND DISTRICT COUNCIL,SOU006,31/05/19,172333,5304.04,RECHARGE INVOICE 6003893358
Eden District Council,http://opendatacommunities.org/id/district-council/eden,Technical Services Manager,Cemeteries,Grounds Maint Contract additional works,AMEY PLC,TFE001,31/05/19,172336,3315.32,GM157
Eden District Council,http://opendatacommunities.org/id/district-council/eden,Revenue/Benefits Manager,Revenue & Benefits,Postages,ROYAL MAIL NW,ROY001,31/05/19,172502,1376.65,1ST AND 2ND CLASS MAIL ACCOUNT
Eden District Council,http://opendatacommunities.org/id/district-council/eden,Financial Services Manager,Corporate Costs,Bank charges,Barclays Merchant services,bms001,10/05/19,192878,827.21,Merchant Services Charges
Eden District Council,http://opendatacommunities.org/id/district-council/eden,Financial Services Manager,Corporate Costs,Bank charges,Barclays Merchant services,bms002,10/05/19,192879,912.76,Merchant Services Charges
